fUSD/lending_fUSD_20240212
["ID","MTS","AMOUNT","RATE_DAILY","PERIOD"]
[313857534,1707754286922,-500.0,0.00027011,2]
[313857535,1707754286933,-500.0,0.00027011,2]
[313857536,1707754286946,-541.60628014,0.00027011,2]
[313857537,1707754286956,-4757.28079489,0.00027034,2]
[313857538,1707754286967,-344.95,0.00027119,2]
[313857539,1707754286978,-3224.84,0.00027281,2]
[313857540,1707754286988,-500.0,0.00027281,2]
[313857541,1707754286998,-579.14922698,0.00027281,2]
[313857542,1707754287009,-500.0,0.00027281,2]
[313857543,1707754287019,-500.0,0.00027281,2]
[313857544,1707754287034,-231.39,0.00027281,2]
[313857545,1707754287045,-547.66,0.00027281,2]
[313857546,1707754287058,-500.0,0.00027281,2]
[313857547,1707754287069,-500.0,0.00027281,2]
[313857548,1707754287080,-522.67,0.00027281,2]
[313857549,1707754287092,-500.0,0.00027281,2]
[313857550,1707754287105,-2324.33,0.00027281,2]
[313857551,1707754287116,-500.0,0.00027281,2]
[313857552,1707754287128,-500.0,0.00027281,2]
[313857553,1707754287139,-500.0,0.00027281,2]
[313857554,1707754287150,-500.0,0.00027281,2]
[313857555,1707754287163,-500.0,0.00027281,2]
[313857556,1707754287174,-500.0,0.00027281,2]
[313857557,1707754287185,-712.14,0.00027281,2]
[313857558,1707754287196,-536.85,0.00027281,2]
[313857559,1707754287207,-423.89,0.00027281,2]
[313857560,1707754287218,-1161.18,0.00027281,2]
[313857561,1707754287229,-500.0,0.00027281,2]
[313857562,1707754287240,-500.0,0.00027281,2]
[313857563,1707754287251,-500.0,0.00027281,2]
[313857564,1707754287262,-1827.32,0.00027281,2]
[313857565,1707754287272,-602.38,0.00027281,2]
[313857566,1707754287285,-500.0,0.00027281,2]
[313857567,1707754287296,-500.0,0.00027281,2]
[313857568,1707754287306,-500.0,0.00027281,2]
[313857569,1707754287316,-606.86,0.00027281,2]
[313857570,1707754287326,-500.0,0.00027281,2]
[313857571,1707754287337,-500.0,0.00027281,2]
[313857572,1707754287347,-500.0,0.00027281,2]
[313857573,1707754287357,-500.0,0.00027281,2]
[313857574,1707754287368,-927.18,0.00027281,2]
[313857575,1707754287379,-500.0,0.00027281,2]
[313857576,1707754287389,-569.35,0.00027281,2]
[313857577,1707754287400,-500.0,0.00027281,2]
[313857578,1707754287410,-500.0,0.00027281,2]
[313857579,1707754287420,-1034.63,0.00027281,2]
[313857580,1707754287430,-754.76,0.00027281,2]
[313857581,1707754287442,-630.79,0.00027281,2]
[313857582,1707754287640,-500.0,0.00027281,2]
[313857583,1707754287650,-500.0,0.00027281,2]
[313857584,1707754287660,-1118.22,0.00027281,2]
[313857585,1707754287670,-500.0,0.00027281,2]
[313857586,1707754287680,-500.0,0.00027281,2]
[313857587,1707754287690,-500.0,0.00027281,2]
[313857588,1707754287699,-500.0,0.00027281,2]
[313857589,1707754287709,-500.0,0.00027282,2]
[313857590,1707754287719,-500.0,0.00027282,2]
[313857591,1707754287728,-500.0,0.00027282,2]
[313857592,1707754287737,-500.0,0.00027282,2]
[313857593,1707754287746,-261.74244039,0.00027282,2]
[313857594,1707754288019,-238.25755961,0.00027282,2]
[313857595,1707754288032,-96.12083066,0.00027282,2]
[313857596,1707754288046,-403.87916934,0.00027282,2]
[313857597,1707754288057,-500.0,0.00027282,2]
[313857598,1707754288067,-500.0,0.00027282,2]
[313857599,1707754288080,-500.0,0.00027282,2]
[313857600,1707754288089,-471.2335851,0.00027282,2]
[313857601,1707754288106,-197.1364149,0.00027282,2]
[313857602,1707754288116,-325.59395461,0.00027282,2]
[313857603,1707754288133,-174.40604539,0.00027282,2]
[313857604,1707754288144,-500.0,0.00027282,2]
[313857605,1707754288153,-500.0,0.00027282,2]
[313857606,1707754288163,-448.28234685,0.00027282,2]
[313857607,1707754288175,-51.71765315,0.00027282,2]
[313857608,1707754288185,-444.87683718,0.00027282,2]
[313857609,1707754288210,-55.12316282,0.00027282,2]
[313857610,1707754288219,-452.3882297,0.00027282,2]
[313857611,1707754288231,-47.6117703,0.00027282,2]
[313857612,1707754288240,-2677.34,0.00027282,2]
[313857613,1707754288250,-500.0,0.00027282,2]
[313857614,1707754288259,-500.0,0.00027282,2]
[313857615,1707754288268,-12.1482297,0.00027282,2]
[313857616,1707754288284,-480.95,0.00027282,2]
[313857617,1707754288301,-534.35,0.00024541,2]
[313857618,1707754288310,-1354.6017703,0.00027282,2]
[313857619,1707754288320,-500.0,0.00027282,2]
[313857620,1707754288331,-500.0,0.00027282,2]
[313857621,1707754288340,-500.0,0.00027282,2]
[313857622,1707754288350,-500.0,0.00027282,2]
[313857623,1707754288360,-1182.43,0.00027282,2]
[313857624,1707754288370,-500.0,0.00027282,2]
[313857625,1707754288379,-500.0,0.00027282,2]
[313857626,1707754288389,-1624.92,0.00027283,2]
[313857627,1707754288399,-314.19,0.00027283,2]
[313857628,1707754288408,-223.86711068,0.00027283,2]
[313857629,1707754288418,-511.39,0.00027283,2]
[313857630,1707754288429,-500.0,0.00027283,2]
[313857631,1707754288439,-458.65,0.00027283,2]
[313857632,1707754288449,-450.35,0.00027283,2]
[313857633,1707754288458,-570.58,0.00027283,2]
[313857634,1707754288467,-1139.86,0.00027283,2]
[313857635,1707754288476,-500.0,0.00027283,2]
[313857636,1707754288486,-500.0,0.00027283,2]
[313857637,1707754288495,-801.05,0.00027283,2]
[313857638,1707754288504,-504.72,0.00027283,2]
[313857639,1707754288513,-500.0,0.00027283,2]
[313857640,1707754288522,-197.07,0.00027283,2]
[313857641,1707754288535,-598.63,0.00027283,2]
[313857642,1707754288544,-1632.44,0.00027283,2]
[313857643,1707754288553,-500.0,0.00027283,2]
[313857644,1707754288563,-500.0,0.00027283,2]
[313857645,1707754288572,-500.0,0.00027283,2]
[313857646,1707754288582,-510.63,0.00027283,2]
[313857647,1707754288591,-500.0,0.00027283,2]
[313857648,1707754288601,-622.24,0.00027283,2]
[313857649,1707754288611,-500.0,0.00027283,2]
[313857650,1707754288620,-500.0,0.00027283,2]
[313857651,1707754288631,-177.62,0.00027283,2]
[313857652,1707754288640,-619.98,0.00027283,2]
[313857653,1707754288652,-1237.84,0.00027283,2]
[313857654,1707754288662,-674.02,0.00027283,2]
[313857655,1707754288674,-500.0,0.00027283,2]
[313857656,1707754288684,-521.13,0.00027283,2]
[313857657,1707754288695,-1959.64,0.00027283,2]
[313857658,1707754288705,-534.53,0.00027283,2]
[313857659,1707754288715,-500.0,0.00027284,2]
[313857660,1707754288725,-500.0,0.00027284,2]
[313857661,1707754288734,-500.0,0.00027284,2]
[313857662,1707754288743,-500.0,0.00027284,2]
[313857663,1707754288753,-500.0,0.00027284,2]
[313857664,1707754288763,-500.0,0.00027284,2]
[313857665,1707754288773,-500.0,0.00027284,2]
[313857666,1707754288784,-500.0,0.00027284,2]
[313857667,1707754288794,-500.0,0.00027284,2]
[313857668,1707754288803,-500.0,0.00027284,2]
[313857669,1707754288812,-500.0,0.00027284,2]
[313857670,1707754288822,-500.0,0.00027284,2]
[313857671,1707754288832,-500.0,0.00027284,2]
[313857672,1707754288841,-500.0,0.00027284,2]
[313857673,1707754288850,-500.0,0.00027284,2]
[313857674,1707754288860,-500.0,0.00027284,2]
[313857675,1707754288869,-500.0,0.00027284,2]
[313857676,1707754288879,-500.0,0.00027284,2]
[313857677,1707754288887,-500.0,0.00027284,2]
[313857678,1707754288897,-500.0,0.00027284,2]
[313857679,1707754288907,-500.0,0.00027284,2]
[313857680,1707754288916,-500.0,0.00027284,2]
[313857681,1707754288926,-500.0,0.00027284,2]
[313857682,1707754288935,-500.0,0.00027284,2]
[313857683,1707754288944,-569.39,0.00027284,2]
[313857684,1707754288954,-500.0,0.00027284,2]
[313857685,1707754288964,-500.0,0.00027284,2]
[313857686,1707754288973,-500.0,0.00027284,2]
[313857687,1707754288983,-500.0,0.00027284,2]
[313857688,1707754288992,-337.21971007,0.00027284,2]
[313857689,1707754289003,-500.0,0.00027284,2]
[313857690,1707754289013,-500.0,0.00027284,2]
[313857691,1707754289023,-500.0,0.00027284,2]
[313857692,1707754289033,-500.0,0.00027284,2]
[313857693,1707754289042,-500.0,0.00027284,2]
[313857694,1707754289053,-500.0,0.00027284,2]
[313857695,1707754289062,-500.0,0.00027284,2]
[313857696,1707754289072,-500.0,0.00027284,2]
[313857697,1707754289083,-500.0,0.00027284,2]
[313857698,1707754289093,-500.0,0.00027284,2]
[313857699,1707754289102,-500.0,0.00027284,2]
[313857700,1707754289112,-500.0,0.00027284,2]
[313857701,1707754289122,-500.0,0.00027285,2]
[313857702,1707754289132,-500.0,0.00027285,2]
[313857703,1707754289142,-500.0,0.00027285,2]
[313857704,1707754289152,-175.0,0.00027285,2]
[313857705,1707754289162,-500.0,0.00027285,2]
[313857706,1707754289171,-500.0,0.00027285,2]
[313857707,1707754289181,-500.0,0.00027285,2]
[313857708,1707754289190,-255.9886334,0.00027285,2]
[313857709,1707754289200,-500.0,0.00027285,2]
[313857710,1707754289209,-257.64175998,0.00027285,2]
[313857711,1707754289219,-500.0,0.00027285,2]
[313857712,1707754289229,-1339.16,0.00027285,2]
[313857713,1707754289239,-500.0,0.00027285,2]
[313857714,1707754289249,-500.0,0.00027285,2]
[313857715,1707754289258,-500.0,0.00027285,2]
[313857716,1707754289268,-500.0,0.00027285,2]
[313857717,1707754289280,-500.0,0.00027285,2]
[313857718,1707754289290,-500.0,0.00027285,2]
[313857719,1707754289299,-500.0,0.00027285,2]
[313857720,1707754289308,-206.375397,0.0002734,2]
[313857721,1707754289318,-1000.0,0.00027397,7]
[313857722,1707754289327,-572.06715597,0.00027397,30]
[313857723,1707754289337,-500.0,0.00027397,7]
[313857724,1707754289346,-1000.0,0.00027397,7]
[313857725,1707754289356,-1000.0,0.00027397,7]
[313857726,1707754289365,-573.97,0.00027397,2]
[313857727,1707754289376,-155.0,0.00027397,2]
[313857728,1707754289386,-500.0,0.00027397,30]
[313857729,1707754289396,-500.0,0.00027397,30]
[313857730,1707754289405,-500.0,0.00027397,30]
[313857731,1707754289414,-151.0,0.00027397,7]
[313857732,1707754289424,-151.0,0.00027397,7]
[313857733,1707754289433,-151.0,0.00027397,7]
[313857734,1707754289442,-151.0,0.00027397,7]
[313857735,1707754289452,-2457.21,0.00027397,10]
[313857736,1707754289461,-500.0,0.000274,2]
[313857737,1707754289470,-2000.0,0.000274,2]
[313857738,1707754289480,-643.6,0.000274,2]
[313857739,1707754289490,-643.6,0.000274,2]
[313857740,1707754289499,-643.6,0.000274,2]
[313857741,1707754289510,-643.6,0.000274,2]
[313857742,1707754289520,-643.6,0.000274,2]
[313857743,1707754289531,-643.6,0.000274,2]
[313857744,1707754289541,-205.0,0.00027535,5]
[313857745,1707754289554,-272.22,0.00027552,2]
[313857746,1707754289564,-3224.84,0.00027555,2]
[313857747,1707754289575,-500.0,0.00027555,2]
[313857748,1707754289585,-500.0,0.00027555,2]
[313857749,1707754289594,-464.05,0.00027555,2]
[313857750,1707754289603,-547.66,0.00027555,2]
[313857751,1707754289612,-500.0,0.00027555,2]
[313857752,1707754289621,-594.1,0.00027555,2]
[313857753,1707754289630,-522.67,0.00027555,2]
[313857754,1707754289641,-500.0,0.00027555,2]
[313857755,1707754289650,-2324.33,0.00027555,2]
[313857756,1707754289660,-500.0,0.00027555,2]
[313857757,1707754289669,-500.0,0.00027555,2]
[313857758,1707754289678,-500.0,0.00027555,2]
[313857759,1707754289686,-525.01,0.00027555,2]
[313857760,1707754289694,-500.0,0.00027555,2]
[313857761,1707754289703,-500.0,0.00027555,2]
[313857762,1707754289712,-712.14,0.00027555,2]
[313857763,1707754289720,-536.85,0.00027555,2]
[313857764,1707754289730,-1161.18,0.00027555,2]
[313857765,1707754289739,-500.0,0.00027555,2]
[313857766,1707754289749,-500.0,0.00027555,2]
[313857767,1707754289759,-500.0,0.00027555,2]
[313857768,1707754289769,-1827.32,0.00027555,2]
[313857769,1707754289784,-602.38,0.00027555,2]
[313857770,1707754289795,-500.0,0.00027555,2]
[313857771,1707754289806,-500.0,0.00027555,2]
[313857772,1707754289817,-500.0,0.00027555,2]
[313857773,1707754289827,-500.0,0.00027555,2]
[313857774,1707754289841,-462.4,0.00027555,2]
[313857775,1707754289851,-635.12,0.00027555,2]
[313857776,1707754289861,-500.0,0.00027555,2]
[313857777,1707754289872,-927.18,0.00027555,2]
[313857778,1707754289882,-500.0,0.00027555,2]
[313857779,1707754289891,-569.35,0.00027555,2]
[313857780,1707754289990,-500.0,0.00027555,2]
[313857781,1707754290001,-500.0,0.00027555,2]
[313857782,1707754290010,-1034.63,0.00027555,2]
[313857783,1707754290020,-754.76,0.00027555,2]
[313857784,1707754290033,-630.79,0.00027555,2]
[313857785,1707754290043,-500.0,0.00027555,2]
[313857786,1707754290059,-500.0,0.00027555,2]
[313857787,1707754290069,-1118.22,0.00027555,2]
[313857788,1707754290079,-500.0,0.00027555,2]
[313857789,1707754290089,-500.0,0.00027555,2]
[313857790,1707754290099,-500.0,0.00027555,2]
[313857791,1707754290109,-500.0,0.00027556,2]
[313857792,1707754290118,-500.0,0.00027556,2]
[313857793,1707754290127,-500.0,0.00027556,2]
[313857794,1707754290138,-456.13,0.00027556,2]
[313857795,1707754290149,-500.0,0.00027556,2]
[313857796,1707754290159,-206.07,0.00027556,2]
[313857797,1707754290169,-207.01,0.00027556,2]
[313857798,1707754290178,-272.33433098,0.00027556,2]
[313857799,1707754290188,-668.37,0.00027556,2]
[313857800,1707754290197,-500.0,0.00027556,2]
[313857801,1707754290207,-500.0,0.00027556,2]
[313857802,1707754290216,-500.0,0.00027556,2]
[313857803,1707754290226,-225.45,0.00027556,2]
[313857804,1707754290236,-500.0,0.00027556,2]
[313857805,1707754290246,-500.0,0.00027556,2]
[313857806,1707754290256,-2677.34,0.00027556,2]
[313857807,1707754290266,-500.0,0.00027556,2]
[313857808,1707754290278,-500.0,0.00027556,2]
[313857809,1707754290287,-1847.7,0.00027556,2]
[313857810,1707754290297,-413.28,0.00027556,2]
[313857811,1707754290307,-500.0,0.00027556,2]
[313857812,1707754290317,-500.0,0.00027556,2]
[313857813,1707754290327,-500.0,0.00027556,2]
[313857814,1707754290337,-1182.43,0.00027556,2]
[313857815,1707754290348,-500.0,0.00027556,2]
[313857816,1707754290358,-500.0,0.00027556,2]
[313857817,1707754290367,-1624.92,0.00027557,2]
[313857818,1707754290377,-511.39,0.00027557,2]
[313857819,1707754290387,-500.0,0.00027557,2]
[313857820,1707754290396,-570.58,0.00027557,2]
[313857821,1707754290405,-1139.86,0.00027557,2]
[313857822,1707754290415,-500.0,0.00027557,2]
[313857823,1707754290426,-500.0,0.00027557,2]
[313857824,1707754290435,-801.05,0.00027557,2]
[313857825,1707754290445,-504.72,0.00027557,2]
[313857826,1707754290454,-196.06,0.00027557,2]
[313857827,1707754290464,-598.63,0.00027557,2]
[313857828,1707754290475,-1632.44,0.00027557,2]
[313857829,1707754290484,-500.0,0.00027557,2]
[313857830,1707754290494,-500.0,0.00027557,2]
[313857831,1707754290503,-500.0,0.00027557,2]
[313857832,1707754290513,-510.63,0.00027557,2]
[313857833,1707754290523,-318.66,0.00027557,2]
[313857834,1707754290535,-622.24,0.00027557,2]
[313857835,1707754290544,-500.0,0.00027557,2]
[313857836,1707754290554,-500.0,0.00027557,2]
[313857837,1707754290564,-619.98,0.00027557,2]
[313857838,1707754290573,-1237.84,0.00027557,2]
[313857839,1707754290582,-674.02,0.00027557,2]
[313857840,1707754290591,-500.0,0.00027557,2]
[313857841,1707754290601,-521.13,0.00027557,2]
[313857842,1707754290611,-1959.64,0.00027557,2]
[313857843,1707754290620,-534.53,0.00027557,2]
[313857844,1707754290629,-500.0,0.00027558,2]
[313857845,1707754290649,-500.0,0.00027558,2]
[313857846,1707754290659,-500.0,0.00027558,2]
[313857847,1707754290669,-500.0,0.00027558,2]
[313857848,1707754290678,-500.0,0.00027558,2]
[313857849,1707754290687,-500.0,0.00027558,2]
[313857850,1707754290697,-500.0,0.00027558,2]
[313857851,1707754290706,-500.0,0.00027558,2]
[313857852,1707754290715,-500.0,0.00027558,2]
[313857853,1707754290725,-500.0,0.00027558,2]
[313857854,1707754290734,-500.0,0.00027558,2]
[313857855,1707754290744,-500.0,0.00027558,2]
[313857856,1707754290754,-500.0,0.00027558,2]
[313857857,1707754290763,-500.0,0.00027558,2]
[313857858,1707754290773,-500.0,0.00027558,2]
[313857859,1707754290784,-500.0,0.00027558,2]
[313857860,1707754290793,-415.16232859,0.00027558,2]
[313857861,1707754290803,-500.0,0.00027558,2]
[313857862,1707754290812,-500.0,0.00027558,2]
[313857863,1707754290821,-500.0,0.00027558,2]
[313857864,1707754290831,-500.0,0.00027558,2]
[313857865,1707754290841,-500.0,0.00027558,2]
[313857866,1707754290851,-500.0,0.00027558,2]
[313857867,1707754290860,-500.0,0.00027558,2]
[313857868,1707754290869,-569.39,0.00027558,2]
[313857869,1707754290880,-500.0,0.00027558,2]
[313857870,1707754290890,-500.0,0.00027558,2]
[313857871,1707754290899,-500.0,0.00027558,2]
[313857872,1707754290909,-500.0,0.00027558,2]
[313857873,1707754290919,-500.0,0.00027558,2]
[313857874,1707754290929,-249.96027528,0.00027558,2]
[313857875,1707754290939,-500.0,0.00027558,2]
[313857876,1707754290949,-500.0,0.00027558,2]
[313857877,1707754290958,-500.0,0.00027558,2]
[313857878,1707754290967,-500.0,0.00027558,2]
[313857879,1707754290977,-500.0,0.00027558,2]
[313857880,1707754290987,-500.0,0.00027558,2]
[313857881,1707754290997,-500.0,0.00027558,2]
[313857882,1707754291007,-500.0,0.00027558,2]
[313857883,1707754291016,-500.0,0.00027558,2]
[313857884,1707754291026,-500.0,0.00027558,2]
[313857885,1707754291037,-500.0,0.00027559,2]
[313857886,1707754291046,-500.0,0.00027559,2]
[313857887,1707754291058,-500.0,0.00027559,2]
[313857888,1707754291068,-500.0,0.00027559,2]
[313857889,1707754291081,-500.0,0.00027559,2]
[313857890,1707754291092,-500.0,0.00027559,2]
[313857891,1707754291101,-500.0,0.00027559,2]
[313857892,1707754291110,-500.0,0.00027559,2]
[313857893,1707754291121,-1339.16,0.00027559,2]
[313857894,1707754291131,-500.0,0.00027559,2]
[313857895,1707754291142,-500.0,0.00027559,2]
[313857896,1707754291151,-500.0,0.00027559,2]
[313857897,1707754291162,-500.0,0.00027559,2]
[313857898,1707754291172,-500.0,0.00027559,2]
[313857899,1707754291181,-500.0,0.00027559,2]
[313857900,1707754291191,-500.0,0.00027559,2]
[313857901,1707754291201,-241.0,0.00027693,2]
[313857902,1707754291211,-169.38,0.00027733,2]
[313857903,1707754291221,-3224.84,0.00027829,2]
[313857904,1707754291231,-500.0,0.00027829,2]
[313857905,1707754291240,-248.1,0.00027829,2]
[313857906,1707754291250,-547.66,0.00027829,2]
[313857907,1707754291260,-500.0,0.00027829,2]
[313857908,1707754291271,-522.67,0.00027829,2]
[313857909,1707754291284,-500.0,0.00027829,2]
[313857910,1707754291294,-2324.33,0.00027829,2]
[313857911,1707754291304,-500.0,0.00027829,2]
[313857912,1707754291314,-551.22,0.00027829,2]
[313857913,1707754291325,-500.0,0.00027829,2]
[313857914,1707754291335,-500.0,0.00027829,2]
[313857915,1707754291345,-500.0,0.00027829,2]
[313857916,1707754291355,-712.14,0.00027829,2]
[313857917,1707754291365,-536.85,0.00027829,2]
[313857918,1707754291376,-1161.18,0.00027829,2]
[313857919,1707754291386,-500.0,0.00027829,2]
[313857920,1707754291395,-500.0,0.00027829,2]
[313857921,1707754291406,-510.82,0.00027829,2]
[313857922,1707754291417,-1827.32,0.00027829,2]
[313857923,1707754291427,-602.38,0.00027829,2]
[313857924,1707754291437,-500.0,0.00027829,2]
[313857925,1707754291447,-263.39,0.00027829,2]
[313857926,1707754291457,-500.0,0.00027829,2]
[313857927,1707754291468,-500.0,0.00027829,2]
[313857928,1707754291479,-500.0,0.00027829,2]
[313857929,1707754291489,-927.18,0.00027829,2]
[313857930,1707754291499,-510.85,0.00027829,2]
[313857931,1707754291509,-569.35,0.00027829,2]
[313857932,1707754291518,-500.0,0.00027829,2]
[313857933,1707754291530,-500.0,0.00027829,2]
[313857934,1707754291540,-1034.63,0.00027829,2]
[313857935,1707754291550,-754.76,0.00027829,2]
[313857936,1707754291561,-630.79,0.00027829,2]
[313857937,1707754291571,-500.0,0.00027829,2]
[313857938,1707754291580,-500.0,0.00027829,2]
[313857939,1707754291591,-1118.22,0.00027829,2]
[313857940,1707754291602,-500.0,0.00027829,2]
[313857941,1707754291612,-500.0,0.00027829,2]
[313857942,1707754291622,-500.0,0.00027829,2]
[313857943,1707754291631,-500.0,0.0002783,2]
[313857944,1707754291641,-244.83,0.0002783,2]
[313857945,1707754291650,-500.0,0.0002783,2]
[313857946,1707754291661,-500.0,0.0002783,2]
[313857947,1707754291671,-668.37,0.0002783,2]
[313857948,1707754291681,-500.0,0.0002783,2]
[313857949,1707754291691,-500.0,0.0002783,2]
[313857950,1707754291701,-500.0,0.0002783,2]
[313857951,1707754291711,-500.0,0.0002783,2]
[313857952,1707754291721,-303.56,0.0002783,2]
[313857953,1707754291730,-2677.34,0.0002783,2]
[313857954,1707754291741,-500.0,0.0002783,2]
[313857955,1707754291751,-500.0,0.0002783,2]
[313857956,1707754291762,-1847.7,0.0002783,2]
[313857957,1707754291772,-151.0,0.0002783,7]
[313857958,1707754291784,-151.0,0.0002783,7]
[313857959,1707754291795,-1805.0,0.0002783,7]
[313857960,1707754291805,-500.0,0.0002783,2]
[313857961,1707754291815,-1805.0,0.0002783,7]
[313857962,1707754291826,-151.0,0.0002783,7]
[313857963,1707754291835,-541.43,0.0002783,2]
[313857964,1707754291846,-151.0,0.0002783,7]
[313857965,1707754291856,-500.0,0.0002783,2]
[313857966,1707754291866,-151.0,0.0002783,7]
[313857967,1707754291875,-151.0,0.0002783,7]
[313857968,1707754291885,-666.161133,0.0002783,7]
[313857969,1707754291894,-666.161133,0.0002783,7]
[313857970,1707754291905,-151.0,0.0002783,7]
[313857971,1707754291915,-151.0,0.0002783,7]
[313857972,1707754291925,-1182.43,0.0002783,2]
[313857973,1707754291934,-429.047693,0.0002783,7]
[313857974,1707754291945,-500.0,0.0002783,2]
[313857975,1707754291955,-429.047693,0.0002783,7]
[313857976,1707754291966,-375.94314,0.0002783,7]
[313857977,1707754291977,-151.0,0.0002783,7]
[313857978,1707754291987,-375.94314,0.0002783,7]
[313857979,1707754291998,-500.0,0.0002783,2]
[313857980,1707754292009,-1624.92,0.00027831,2]
[313857981,1707754292019,-469.03979011,0.00027831,2]
[313857982,1707754292033,-511.39,0.00027831,2]
[313857983,1707754292044,-151.0,0.00027831,7]
[313857984,1707754292057,-151.0,0.00027831,7]
[313857985,1707754292068,-570.58,0.00027831,2]
[313857986,1707754292080,-151.0,0.00027831,7]
[313857987,1707754292091,-1139.86,0.00027831,2]
[313857988,1707754292103,-161.752135,0.00027831,7]
[313857989,1707754292113,-151.0,0.00027831,7]
[313857990,1707754292124,-161.752135,0.00027831,7]
[313857991,1707754292135,-423.44,0.00027831,2]
[313857992,1707754292147,-428.44,0.00027831,2]
[313857993,1707754292159,-151.0,0.00027831,7]
[313857994,1707754292171,-151.0,0.00027831,7]
[313857995,1707754292182,-801.05,0.00027831,2]
[313857996,1707754292193,-504.72,0.00027831,2]
[313857997,1707754292204,-151.0,0.00027831,7]
[313857998,1707754292215,-598.63,0.00027831,2]
[313857999,1707754292225,-1632.44,0.00027831,2]
[313858000,1707754292235,-500.0,0.00027831,2]
[313858001,1707754292247,-500.0,0.00027831,2]
[313858002,1707754292257,-500.0,0.00027831,2]
[313858003,1707754292268,-510.63,0.00027831,2]
[313858004,1707754292282,-622.24,0.00027831,2]
[313858005,1707754292293,-500.0,0.00027831,2]
[313858006,1707754292304,-500.0,0.00027831,2]
[313858007,1707754292314,-619.98,0.00027831,2]
[313858008,1707754292324,-1237.84,0.00027831,2]
[313858009,1707754292334,-674.02,0.00027831,2]
[313858010,1707754292344,-407.0,0.00027831,2]
[313858011,1707754292354,-521.13,0.00027831,2]
[313858012,1707754292364,-1959.64,0.00027831,2]
[313858013,1707754292375,-534.53,0.00027831,2]
[313858014,1707754292386,-254.02709114,0.00027832,3]
[313858015,1707754292396,-500.0,0.00027832,2]
[313858016,1707754292406,-500.0,0.00027832,2]
[313858017,1707754292416,-500.0,0.00027832,2]
[313858018,1707754292426,-500.0,0.00027832,2]
[313858019,1707754292436,-500.0,0.00027832,2]
[313858020,1707754292446,-500.0,0.00027832,2]
[313858021,1707754292456,-500.0,0.00027832,2]
[313858022,1707754292466,-500.0,0.00027832,2]
[313858023,1707754292476,-500.0,0.00027832,2]
[313858024,1707754292486,-500.0,0.00027832,2]
[313858025,1707754292496,-500.0,0.00027832,2]
[313858026,1707754292506,-573.16788828,0.00027832,2]
[313858027,1707754292515,-500.0,0.00027832,2]
[313858028,1707754292527,-500.0,0.00027832,2]
[313858029,1707754292538,-500.0,0.00027832,2]
[313858030,1707754292548,-500.0,0.00027832,2]
[313858031,1707754292558,-500.0,0.00027832,2]
[313858032,1707754292569,-500.0,0.00027832,2]
[313858033,1707754292580,-500.0,0.00027832,2]